bitfinex-derivatives/quotes_ETHF0:USTF0_20250817
["timestamp","ask_amount","ask_price","bid_price","bid_amount"]
[1755422486000,31.603,4553.7,4553.6,2.9717]
[1755422486001,52.603,4553.7,4553.6,2.9717]
[1755422486201,52.6119,4553.7,4553.6,2.9717]
[1755422486404,52.6229,4553.7,4553.6,2.3851]
[1755422487003,52.6229,4553.7,4553.6,2.9717]
[1755422487204,52.6119,4553.7,4553.6,2.9717]
[1755422488013,52.6229,4553.7,4553.6,2.9717]
[1755422488310,52.6229,4553.7,4553.6,2.3851]
[1755422488608,0.0624,4553.3,4553.2,5.00040253]
[1755422488911,21.0614,4553.3,4553.2,5.91200253]
[1755422489908,21.0504,4553.3,4553.2,5.91200253]
[1755422490110,21.0096,4553.3,4553.2,5.91200253]
[1755422490811,20.999,4553.3,4553.2,5.91200253]
[1755422491501,21.53157974,4553.3,4553.2,5.91200253]
[1755422491701,21.55107974,4553.3,4553.2,5.91200253]
[1755422492511,21.58297974,4553.3,4553.2,5.91200253]
[1755422492712,21.59397974,4553.3,4553.2,5.91200253]
[1755422493109,21.59397974,4553.3,4553.2,5.32540253]
[1755422493308,21.55107974,4553.3,4553.2,5.91200253]
[1755422493512,31.603,4553.7,4553.6,1.2053]
[1755422493714,52.601,4553.7,4553.6,2.9717]
[1755422494610,52.6662,4553.7,4553.6,2.9717]
[1755422495312,31.603,4553.7,4553.6,2.9717]
[1755422495502,52.78553571,4553.7,4553.6,2.9717]
[1755422496101,52.79653571,4553.7,4553.3,0.7423]
[1755422496316,3.7037,4553.4,4553.3,2.3851]
[1755422496514,24.88623571,4553.4,4553.3,2.3851]
[1755422496713,24.88623571,4553.4,4553.3,2.9717]
[1755422497419,24.87523571,4553.4,4553.3,2.9717]
[1755422497718,24.88623571,4553.4,4553.3,2.3851]
[1755422497915,24.88651639,4553.4,4553.3,2.3851]
[1755422498416,24.88651639,4553.4,4553.3,2.9717]
[1755422499014,24.87551639,4553.4,4553.3,2.9717]
[1755422501615,24.87551639,4553.4,4553.3,2.3851]
[1755422501616,25.34131639,4553.4,4553.3,2.3851]
[1755422502214,25.34131639,4553.4,4553.2,0.00403253]
[1755422502215,0.8463,4553.3,4553.2,0.00403253]
[1755422502511,1.13751639,4553.3,4553.2,0.00403253]
[1755422503320,1.13751639,4553.3,4552.7,1.1798]
[1755422503517,3.6751,4552.9,4552.8,2.9717]
[1755422503717,24.85391639,4552.9,4552.8,2.9717]
[1755422503916,24.1998,4552.9,4552.8,2.9717]
[1755422504108,24.38759365,4552.9,4552.8,2.9717]
[1755422504514,24.68540085,4552.9,4552.8,2.9717]
[1755422505020,3.69340085,4552.9,4552.8,2.9717]
[1755422505216,24.68640085,4552.9,4552.8,2.9717]
[1755422505514,21.7153267,4552.9,4552.8,2.9717]
[1755422507009,21.7153267,4552.9,4552.3,0.0219]
[1755422507010,0.4197,4552.4,4552.3,1.1798]
[1755422507218,0.4197,4552.4,4552.3,2.9717]
[1755422507219,21.66580085,4552.4,4552.3,2.9717]
[1755422507519,21.7153267,4552.4,4552.3,2.9717]
[1755422511012,0.0912267,4552.4,4552.3,2.9936]
[1755422511216,19.5894,4552.4,4552.3,2.9936]
[1755422511519,17.9329,4552.4,4552.3,5.9936]
[1755422511716,14.6637,4552.4,4552.3,5.9936]
[1755422511917,0.4257,4553.2,4553.1,0.0009]
[1755422512110,31.603,4553.7,4553.1,0.0228]
[1755422512312,20.987,4553.6,4553.2,3.2078]
[1755422512521,20.987,4553.6,4553.5,0.0009]
[1755422513616,21.4127,4553.6,4553.5,0.0009]
[1755422513813,21.4127,4553.6,4553.2,3.2078]
[1755422513814,2.973,4553.3,4553.2,3.2078]
[1755422514114,22.9669,4553.3,4553.2,3.2087]
[1755422515320,21.4117,4553.3,4553.2,6.14497]
[1755422516514,20.986,4553.3,4553.2,6.14497]
[1755422516923,3.2078,4555.1,4553.3,0.0219]
[1755422517218,31.627,4556.6,4553.3,0.0219]
[1755422517219,1.1361,4555.0,4554.9,0.0009]
[1755422517414,1.8701,4555.0,4554.9,0.0009]
[1755422517614,2.973,4555.0,4554.9,0.0009]
[1755422520320,2.973,4555.0,4554.9,2.93717]
[1755422521619,0.4257,4555.7,4554.9,5.95907]
[1755422521823,4.5277,4556.3,4555.6,0.0009]
[1755422521824,0.4257,4556.3,4555.6,0.0009]
[1755422522024,0.4257,4556.3,4556.2,0.0009]
[1755422522526,1.5659,4556.9,4556.2,0.0009]
[1755422522820,2.0829,4556.9,4556.2,3.2087]
[1755422523227,0.19409297,4556.8,4556.2,3.2306]
[1755422523522,1.7456,4556.5,4556.2,3.2087]
[1755422523827,0.4257,4556.4,4556.2,3.2087]
[1755422524216,1.1402,4556.9,4556.2,3.2087]
[1755422524521,0.19312914,4556.8,4556.2,3.2087]
[1755422524728,0.4257,4557.0,4556.2,3.2087]
[1755422525018,0.19290636,4556.9,4556.2,3.2087]
[1755422525217,0.19290636,4556.8,4556.3,2.93627]
[1755422525415,0.4257,4556.9,4556.7,0.0009]
[1755422525614,1.0116,4557.1,4556.3,2.93627]
[1755422525819,2.973,4556.4,4556.3,2.93627]
[1755422526019,2.973,4556.4,4556.3,2.93717]
[1755422527424,1.1597,4557.8,4556.7,0.4605]
[1755422527624,2.3871,4557.8,4557.7,0.0009]
[1755422528027,2.973,4557.8,4557.7,0.0009]
[1755422528321,1.1361,4557.8,4557.7,0.0009]
[1755422528527,2.973,4557.8,4557.7,0.0009]
[1755422528821,2.3871,4557.8,4557.7,0.0009]
[1755422529430,2.973,4557.8,4557.7,0.0009]
[1755422530030,1.4639,4557.8,4557.7,0.0009]
[1755422530231,0.1,4558.2,4558.1,0.0228]
[1755422530528,0.4257,4559.5,4559.4,0.0009]
[1755422530923,2.973,4559.2,4559.1,3.2078]
[1755422531123,2.973,4559.2,4557.7,3.11295548]
[1755422531124,24.37639398,4559.2,4557.7,3.54077]
[1755422531329,1.7456,4558.7,4557.8,0.6045]
[1755422531525,0.4257,4558.6,4558.0,0.6045]
[1755422531920,3.2078,4559.3,4558.3,1.3519]
[1755422532127,1.0116,4559.1,4558.3,1.3519]
[1755422532424,1.1597,4558.3,4557.7,2.93627]
[1755422532620,0.4257,4559.0,4558.0,0.463]
[1755422532823,0.734,4558.6,4558.1,1.3519]
[1755422533020,3.2078,4558.7,4558.1,1.3519]
[1755422533225,0.0219,4558.5,4557.7,3.54077]
[1755422533426,1.7456,4558.1,4557.7,3.54077]
[1755422533625,3.2078,4558.5,4557.7,3.54077]
[1755422533829,1.7456,4557.8,4557.7,2.93627]
[1755422537233,4.7675,4557.8,4557.7,0.56347]
[1755422537533,5.48477643,4557.8,4557.7,0.56347]
[1755422537826,0.0219,4557.5,4557.1,0.09874593]
[1755422538027,4.4087,4557.2,4557.1,0.09874593]
[1755422538233,5.12601628,4557.2,4557.1,0.09874593]
[1755422539438,5.12624635,4557.2,4557.1,0.09874593]
[1755422540437,5.95094635,4557.2,4557.1,0.09874593]
[1755422540633,5.95094635,4557.2,4557.1,1.36724593]
[1755422540837,26.89994635,4557.2,4557.1,0.09874593]
[1755422541936,26.89994635,4557.2,4557.1,4.36724593]
[1755422541937,0.19198859,4557.2,4557.1,4.36724593]
[1755422542134,3.2078,4557.8,4557.2,1.7959]
[1755422542437,0.4398,4558.1,4557.2,1.7959]
[1755422542634,0.7611,4558.2,4557.4,1.3411]
[1755422542832,3.8372,4558.4,4557.1,0.09874593]
[1755422542833,3.2078,4558.4,4557.7,0.0219]
[1755422543232,3.2078,4558.4,4557.9,0.4548]
[1755422543433,0.4398,4558.3,4557.7,1.7959]
[1755422543640,1.8303,4558.1,4557.8,1.7959]
[1755422543935,1.8303,4558.0,4557.9,1.0377]
[1755422544137,1.8303,4558.0,4557.9,1.7959]
[1755422544336,1.8303,4558.0,4557.9,1.0377]
[1755422544538,1.8303,4557.9,4557.6,5.0037]
[1755422544735,1.2009,4557.7,4557.6,1.7959]
[1755422544944,1.8303,4557.7,4557.6,1.7959]
[1755422545147,1.8303,4557.7,4557.6,1.0377]
[1755422545742,1.0692,4557.7,4557.6,1.0377]
[1755422545941,20.948,4558.1,4557.1,3.30654593]
[1755422546152,20.948,4558.1,4557.2,1.7959]
[1755422546446,1.8303,4558.0,4557.8,1.7959]
[1755422546641,1.8303,4558.0,4557.7,2.93627]
[1755422546847,1.8522,4557.8,4557.7,2.93627]
[1755422547048,1.8303,4557.8,4557.7,2.93627]
[1755422547845,1.8522,4557.8,4557.7,2.93627]
[1755422548047,0.0219,4557.7,4557.1,0.09874593]
[1755422548245,3.8612,4557.2,4557.1,0.09874593]
[1755422548444,24.8072,4557.2,4557.1,0.09874593]
[1755422548844,24.8072,4557.2,4555.1,0.7582]
[1755422548845,0.0219,4557.1,4555.1,0.7582]
[1755422549143,0.5546,4556.1,4555.0,3.2078]
[1755422549346,3.2078,4556.7,4555.2,0.43875]
[1755422549546,0.4398,4556.9,4555.4,0.7582]
[1755422549750,0.4398,4556.9,4555.6,1.7959]
[1755422549942,0.4398,4556.9,4553.8,1.09723]
[1755422549943,0.4398,4556.3,4555.7,1.7959]
[1755422550144,0.1148,4556.3,4555.7,1.7959]
[1755422550340,0.5765,4556.0,4555.0,3.2078]
[1755422550546,0.4398,4555.2,4554.3,3.966]
[1755422550741,3.2078,4555.3,4553.5,0.21557278]
[1755422550742,0.5546,4554.7,4553.9,0.7582]
[1755422551045,0.1148,4554.5,4553.9,0.7582]
[1755422551246,0.4398,4554.6,4554.0,1.0377]
[1755422551447,0.4398,4554.6,4554.1,0.7582]
[1755422551753,0.4398,4554.5,4554.4,1.7959]
[1755422551950,0.5546,4554.5,4553.7,0.7582]
[1755422552147,3.2078,4553.8,4553.0,0.4548]
[1755422552443,3.6476,4554.8,4554.1,2.93627]
[1755422552644,0.1148,4555.1,4554.1,2.93627]
[1755422552645,20.947,4554.7,4554.1,2.93627]
[1755422552852,20.947,4554.7,4554.2,1.7959]
[1755422553045,3.6476,4555.4,4554.2,0.0219]
[1755422553248,3.6476,4555.4,4554.7,0.4767]
[1755422553249,20.956,4555.3,4554.7,0.4767]
[1755422553442,20.956,4555.3,4554.8,0.7582]
[1755422553647,20.956,4555.3,4555.0,1.7959]
[1755422553950,24.1638,4555.9,4555.3,1.7959]
[1755422554152,21.67134902,4555.8,4554.9,3.2078]
[1755422554371,0.71734902,4555.7,4555.6,1.7959]
[1755422555549,0.19044406,4555.7,4555.6,1.7959]
[1755422556150,0.63024406,4555.7,4554.9,3.2078]
[1755422556352,20.954,4555.8,4553.8,3.2078]
[1755422556353,0.5546,4555.2,4553.8,3.2078]
[1755422556555,0.4398,4553.9,4553.2,0.5829]
[1755422556753,3.2078,4553.4,4552.7,1.7959]
[1755422557055,0.4398,4553.3,4553.0,1.7959]
[1755422557252,0.4398,4553.3,4553.1,1.3411]
[1755422557454,0.19043939,4553.2,4552.4,0.0219]
[1755422557649,3.2078,4552.7,4552.2,0.0219]
[1755422558050,3.6476,4553.3,4552.3,1.7959]
[1755422558255,20.972,4553.2,4552.4,1.0377]
[1755422558457,0.4398,4553.1,4552.2,1.7959]
[1755422558655,3.2078,4552.8,4552.2,1.7959]
[1755422559053,3.2078,4552.8,4551.4,3.2297]
[1755422559054,3.2078,4552.8,4552.5,1.213]
[1755422559259,3.2078,4552.8,4552.6,1.0377]
[1755422559457,3.2078,4552.8,4552.7,1.213]
[1755422559649,3.2078,4552.8,4552.7,1.7959]
[1755422559952,3.2078,4553.8,4553.0,1.0377]
[1755422560252,1.0692,4553.7,4553.1,0.7582]
[1755422561858,20.958,4553.6,4552.7,2.93627]
[1755422562159,20.958,4553.6,4552.8,1.7959]
[1755422562353,20.958,4553.6,4552.9,1.7959]
[1755422563159,20.958,4553.6,4553.0,0.7582]
[1755422563360,20.958,4553.6,4553.1,1.0377]
[1755422563557,21.0947,4553.6,4552.8,1.7959]
[1755422563757,21.0947,4553.6,4553.0,0.7582]
[1755422563758,1.0692,4553.1,4553.0,0.7582]
[1755422563958,1.0692,4553.1,4553.0,1.7959]
[1755422564454,20.958,4553.2,4552.8,1.7959]
[1755422564650,3.2078,4553.8,4552.7,2.93627]
[1755422564948,3.2078,4553.8,4553.0,1.7959]
[1755422565149,3.2078,4553.8,4553.1,1.7959]
[1755422565352,3.2078,4553.8,4553.2,0.4548]
[1755422565554,3.2078,4553.8,4553.5,1.213]
[1755422565756,3.2078,4553.8,4553.7,1.213]
[1755422566058,3.2078,4553.8,4553.7,1.7959]
[1755422566455,1.0692,4553.7,4553.0,0.7582]
[1755422566762,3.2078,4553.3,4553.0,0.7582]
[1755422566961,1.184,4553.2,4553.0,0.7582]
[1755422567260,1.0692,4553.1,4553.0,0.7582]
[1755422568063,1.2651,4553.0,4552.7,2.93627]
[1755422568261,1.1057,4552.9,4552.7,2.93627]
[1755422568558,0.1594,4552.9,4552.7,2.93627]
[1755422568863,1.1057,4552.8,4552.7,2.93627]
[1755422569054,1.1057,4552.8,4552.7,3.68597]
[1755422569256,1.1057,4552.8,4552.7,4.79557]
[1755422569457,3.2078,4553.3,4552.9,0.4659]
[1755422569759,20.959,4553.2,4553.1,1.8593]
[1755422569948,4.3135,4553.3,4552.7,2.93627]
[1755422570154,20.96,4553.2,4552.8,1.8593]
[1755422570354,22.0657,4553.2,4553.1,0.7497]
[1755422570757,20.96,4553.2,4553.1,1.8593]
[1755422571258,20.96,4553.5,4552.9,3.2078]
[1755422571463,20.96,4553.5,4553.0,1.8593]
[1755422571759,20.96,4553.5,4553.2,0.4659]
[1755422571957,20.96,4553.5,4553.0,1.8593]
[1755422572156,20.96,4553.5,4552.9,2.93627]
[1755422572660,20.96,4553.7,4553.3,1.3934]
[1755422572855,3.8348,4554.0,4553.5,0.7497]
[1755422573060,20.96,4553.9,4553.1,1.8593]
[1755422573255,20.96,4553.9,4553.0,0.0219]
[1755422573256,20.96,4553.9,4553.2,1.2156]
[1755422573457,3.2078,4554.0,4553.2,1.8593]
[1755422573754,3.2078,4554.0,4553.3,1.8593]
[1755422573962,3.2078,4554.0,4553.4,1.3934]
[1755422574161,3.2078,4554.0,4553.6,1.3934]
[1755422574357,3.2078,4554.0,4553.1,1.8593]
[1755422574756,3.2078,4554.0,4553.0,0.0219]
[1755422574958,3.2078,4554.0,4553.5,1.8812]
[1755422575260,3.2078,4554.6,4554.3,1.8593]
[1755422575461,3.2078,4554.6,4554.5,1.8593]
[1755422576267,3.2078,4555.1,4554.9,1.1096]
[1755422576459,3.2078,4555.1,4555.0,1.8593]
[1755422577463,3.2078,4555.6,4555.1,1.1096]
[1755422577661,3.2078,4555.6,4555.2,1.8593]
[1755422577861,3.2078,4555.6,4554.9,0.43878]
[1755422578060,3.2078,4555.6,4555.5,1.1096]
[1755422578365,3.2078,4555.6,4555.5,1.8593]
[1755422579167,20.958,4556.0,4555.2,3.2078]
[1755422579364,20.958,4556.0,4555.3,2.29804]
[1755422579566,20.958,4556.0,4555.4,1.8593]
[1755422579766,20.958,4556.0,4555.5,0.7497]
[1755422580069,20.958,4556.0,4555.2,3.2078]
[1755422580368,21.1174,4556.0,4555.7,0.7497]
[1755422580567,20.958,4556.0,4555.9,0.7497]
[1755422580767,20.958,4556.0,4555.9,1.8593]
[1755422581560,22.0637,4556.0,4555.9,1.8593]
[1755422581768,1.57788418,4558.4,4557.9,0.43849]
[1755422582064,0.4787,4559.0,4558.1,4.7253]
[1755422583172,0.4787,4559.5,4558.5,0.6656]
[1755422583367,0.4787,4559.5,4559.4,1.0516]
[1755422583764,0.7519,4559.6,4559.4,0.4079]
[1755422583962,0.4787,4559.6,4559.5,1.0516]
[1755422584164,1.8576,4559.6,4559.5,0.6437]
[1755422584770,0.0219,4560.0,4559.3,3.2078]
[1755422584970,1.2306,4559.4,4559.3,3.8515]
[1755422585271,1.8576,4559.4,4559.3,3.2078]
[1755422585676,1.8576,4559.4,4559.3,3.8515]
[1755422586572,1.8576,4559.4,4559.3,3.2078]
[1755422587275,1.8576,4559.4,4558.8,3.2078]
[1755422587472,0.6489,4559.1,4558.8,3.2078]
[1755422587662,1.8576,4558.9,4558.0,3.2078]
[1755422587869,1.2306,4558.8,4558.0,3.2078]
[1755422588069,0.0219,4559.7,4558.5,3.2078]
[1755422588271,1.2306,4559.5,4558.5,3.2078]
[1755422588469,1.2306,4559.3,4558.5,3.2078]
[1755422588666,1.2306,4559.6,4558.9,2.93627]
[1755422588872,1.2306,4559.6,4559.1,0.6437]
[1755422589077,1.2306,4559.5,4559.3,1.0516]
[1755422589272,1.2306,4559.5,4559.4,0.6437]
[1755422589576,1.8576,4559.5,4559.4,0.6437]
[1755422589771,1.8576,4559.7,4559.1,0.6437]
[1755422589969,0.4787,4559.6,4559.1,0.6437]
[1755422590169,0.7519,4559.5,4559.1,1.5175]
[1755422590367,1.8576,4559.3,4559.2,2.93627]
[1755422590574,1.2306,4559.3,4559.2,2.93627]
[1755422590775,1.2306,4559.3,4559.2,3.98787]
[1755422590966,0.627,4559.6,4559.2,3.98787]
[1755422591278,1.2306,4559.5,4559.3,1.0516]
[1755422591476,1.2306,4559.5,4559.2,3.40217]
[1755422591477,1.8576,4559.4,4559.2,2.93627]
[1755422591679,1.2306,4559.3,4559.2,3.57997]
[1755422591978,1.8576,4559.3,4559.2,2.93627]
[1755422595582,1.8576,4559.3,4559.2,3.57997]
[1755422595583,1.2306,4559.3,4559.2,3.57997]
[1755422595782,1.2306,4559.3,4559.2,3.98787]
[1755422596282,0.4787,4559.3,4559.2,4.45377]
[1755422596471,1.2306,4559.6,4559.3,1.0516]
[1755422596676,3.2078,4559.8,4559.3,0.6437]
[1755422596875,1.8576,4559.4,4559.3,0.6437]
[1755422597277,1.8576,4559.4,4559.3,1.0516]
[1755422597480,1.8576,4559.4,4559.3,0.6437]
[1755422598284,1.2306,4559.4,4559.3,1.049]
[1755422599480,1.8416,4559.4,4559.3,0.6437]
[1755422599785,1.8416,4559.4,4559.2,2.93627]
[1755422599984,1.8199,4559.3,4559.2,2.93627]
[1755422600376,0.761,4558.8,4557.8,3.2078]
[1755422600577,1.4941,4558.2,4557.4,0.4425]
[1755422600880,1.0402,4558.1,4557.4,0.4425]
[1755422601087,0.7391,4557.9,4557.4,0.4425]
[1755422601278,1.4941,4558.2,4557.4,0.4425]
[1755422601477,1.0402,4558.1,4557.4,0.4425]
[1755422601676,0.2852,4558.0,4557.4,0.4425]
[1755422601882,0.755,4557.9,4557.4,0.4425]
[1755422602082,0.4539,4557.8,4557.3,0.6243]
[1755422602384,0.2852,4557.6,4557.4,1.3841]
[1755422602978,0.4539,4558.1,4557.1,0.54124593]
[1755422603291,0.3071,4557.8,4557.1,0.09874593]
[1755422603479,0.2852,4557.6,4557.1,0.09874593]
[1755422603680,0.4539,4557.5,4557.4,2.17027]
[1755422604180,1.2089,4557.5,4557.4,2.17027]
[1755422604483,4.2089,4557.5,4557.4,2.17027]
[1755422605181,4.73451095,4557.5,4557.4,2.17027]
[1755422605582,1.28061095,4557.5,4557.4,2.17027]
[1755422605882,1.28061095,4557.5,4557.4,2.61277]
[1755422606780,0.755,4558.1,4557.4,3.55437]
[1755422606986,0.52589892,4558.0,4557.5,0.4425]
[1755422607183,20.995,4558.4,4557.4,2.17027]
[1755422607184,1.28089892,4557.9,4557.7,0.7598]
[1755422607378,0.52632886,4557.8,4557.4,2.17027]
[1755422607583,0.755,4558.3,4557.5,0.4425]
[1755422607784,0.52632788,4558.2,4557.5,0.4425]
[1755422607986,1.28132788,4558.1,4557.5,0.4425]
[1755422608185,0.755,4557.9,4557.6,1.3841]
[1755422608488,1.28132788,4557.8,4557.7,1.0668]
[1755422609086,0.52632788,4557.8,4557.4,2.61277]
[1755422609291,0.755,4557.6,4557.4,2.61277]
[1755422609587,1.28132788,4557.5,4557.4,2.61277]
[1755422610387,0.52632788,4557.5,4557.4,3.99687]
[1755422610784,0.52700397,4557.9,4557.5,1.2023]
[1755422611090,0.755,4557.7,4557.4,2.79457]
[1755422611282,0.52701772,4557.6,4557.4,2.79457]
[1755422611484,20.995,4558.4,4557.4,3.23707]
[1755422611485,1.28201772,4557.5,4557.4,3.23707]
[1755422611890,1.28201772,4557.5,4557.4,2.61277]
[1755422613482,1.28201772,4557.5,4557.4,2.17027]
[1755422613688,22.23101772,4557.5,4557.4,2.17027]
[1755422613892,14.23101772,4557.5,4557.4,2.17027]
[1755422615889,14.75571772,4557.5,4557.4,2.17027]
[1755422617889,15.25551772,4557.5,4557.4,2.17027]
[1755422619092,15.25551772,4557.5,4557.4,2.61277]
[1755422619493,14.73081772,4557.5,4557.4,4.59157]
[1755422619695,14.73081772,4557.5,4557.4,5.21587]
[1755422619991,14.23101772,4557.5,4557.4,3.99687]
[1755422621494,14.75571772,4557.5,4557.4,3.99687]
[1755422622491,14.75571772,4557.5,4557.4,2.61277]
[1755422623101,14.23101772,4557.5,4557.4,2.61277]
[1755422623292,14.23101772,4557.5,4557.4,3.99687]
[1755422623598,14.75571772,4557.5,4557.4,3.99687]
[1755422623897,14.75571772,4557.5,4557.4,3.37257]
[1755422624396,14.75571772,4557.5,4557.4,3.99687]
[1755422624698,14.75571772,4557.5,4557.4,2.17027]
[1755422625596,15.25551772,4557.5,4557.4,2.61277]
[1755422627488,15.45811772,4557.5,4557.4,2.61277]
[1755422627693,15.45811772,4557.5,4557.4,3.71767]
[1755422628093,15.45811772,4557.5,4557.4,4.14527]
[1755422628491,14.93341772,4557.5,4557.4,5.27407]
[1755422628800,14.23101772,4557.5,4557.4,5.27407]
[1755422631404,15.53881772,4557.5,4557.4,5.27407]
[1755422631893,14.75091772,4557.5,4557.4,5.27407]
[1755422632089,14.23101772,4557.5,4557.4,5.27407]
[1755422632700,14.28271772,4557.5,4557.4,5.27407]
[1755422633298,14.80261772,4557.5,4557.4,5.27407]
[1755422633501,15.53691772,4557.5,4557.4,5.27407]
[1755422634802,14.86491772,4557.5,4557.4,5.27407]
[1755422635004,14.23101772,4557.5,4557.4,5.27407]
[1755422636005,1.3059,4558.4,4558.3,2.7105]
[1755422636300,22.78049871,4558.4,4558.3,2.7105]
[1755422636699,22.78049871,4558.4,4558.3,3.1381]
[1755422639301,22.72879871,4558.4,4557.6,0.4768]
[1755422639497,0.57929871,4558.3,4557.7,1.2447]
[1755422639703,1.3059,4558.3,4558.2,3.1381]
[1755422639898,1.8335542,4558.3,4558.2,3.1381]
[1755422640305,1.8335542,4558.3,4558.2,5.30837]
[1755422641504,1.8335542,4558.3,4558.2,4.69327]
[1755422641903,1.8335542,4558.3,4558.2,3.92537]
[1755422642108,1.8335542,4558.3,4558.2,2.64707]
[1755422642607,1.8335542,4558.3,4558.2,5.30837]
[1755422643713,1.8335542,4558.3,4558.2,2.64707]
[1755422644108,1.8724542,4558.3,4558.2,2.17027]
[1755422644305,1.87653541,4558.3,4558.2,2.64707]
[1755422644506,1.83763541,4558.3,4558.2,2.64707]
[1755422645009,1.87653541,4558.3,4558.2,2.17027]
[1755422645211,1.89843541,4558.3,4558.2,2.04685052]
[1755422645410,1.87653541,4558.3,4558.2,2.04685052]
[1755422645620,1.83763541,4558.3,4558.2,2.52365052]
[1755422646210,1.89843541,4558.3,4558.2,2.04685052]
[1755422646409,1.89843541,4558.3,4558.2,0.94995036]
[1755422647714,1.87653541,4558.3,4558.2,0.94995036]
[1755422650207,1.87653541,4558.3,4557.8,0.4768]
[1755422650409,4.5137,4557.9,4557.8,0.4768]
[1755422650618,25.9763542,4557.9,4557.8,0.4768]
[1755422652313,25.9763542,4557.9,4557.8,0.8138]
[1755422652610,25.9763542,4557.9,4557.8,2.0093]
[1755422652815,25.9763542,4557.9,4557.8,1.2414]
[1755422653013,25.9763542,4557.9,4557.8,0.8138]
[1755422653416,25.9763542,4557.9,4557.8,0.4768]
[1755422653619,26.0152542,4557.9,4557.8,0.4768]
[1755422654114,25.9763542,4557.9,4557.8,2.523]
[1755422654719,25.9763542,4557.9,4557.8,3.1381]
[1755422657224,25.3870542,4557.9,4557.8,3.1381]
[1755422657716,24.6704542,4557.9,4557.8,3.1381]
[1755422658827,25.9328542,4557.9,4557.8,0.4768]
[1755422659120,1.2624,4557.6,4557.5,0.4767]
[1755422659323,22.7170542,4557.6,4557.5,0.4767]
[1755422660224,22.7480542,4557.6,4557.5,0.4767]
[1755422660423,22.0996542,4557.6,4557.1,0.74444593]
[1755422660626,4.7569,4557.2,4557.1,2.81114593]
[1755422660927,26.6866542,4557.2,4557.1,0.09874593]
[1755422661730,26.6866542,4557.2,4557.1,1.34124593]
[1755422661919,26.6866542,4557.2,4557.1,2.81114593]
[1755422662424,26.6866542,4557.2,4557.1,3.28784593]
[1755422662621,26.2105542,4557.2,4557.1,3.28784593]
[1755422662821,26.21094665,4557.2,4557.1,3.28784593]
[1755422663723,4.78568418,4558.2,4557.1,2.18734593]
[1755422663916,25.5242,4558.2,4558.1,1.8882]
[1755422664115,25.5242,4558.2,4558.1,3.1891]
[1755422665320,24.1328,4558.2,4558.1,3.1891]
[1755422666229,24.5582,4558.2,4558.1,3.1891]
[1755422666631,24.8946,4558.2,4558.1,3.1891]
[1755422666823,26.0536,4558.2,4558.1,3.1891]
[1755422667329,25.1878,4558.2,4558.1,3.1891]
[1755422668830,25.5242,4558.2,4558.1,3.1891]
[1755422669031,26.0536,4558.2,4558.1,3.1891]
[1755422670232,25.5242,4558.2,4558.1,3.1891]
[1755422671222,26.0536,4558.2,4558.1,3.1891]
[1755422671426,26.6271,4558.2,4558.1,3.1891]
[1755422671626,1.9208,4558.1,4558.0,0.8385]
[1755422671827,1.9208,4558.1,4558.0,2.1394]
[1755422671828,2.4943,4558.1,4558.0,2.1394]
[1755422672133,2.4943,4558.1,4558.0,3.1891]
[1755422672531,1.055,4558.1,4558.0,3.1891]
[1755422673035,0.4254,4558.1,4558.0,6.12537]
[1755422673832,1.3914,4558.1,4558.0,6.12537]
[1755422674136,2.4943,4558.1,4558.0,5.47967]
[1755422674332,2.4943,4558.1,4558.0,6.12537]
[1755422674532,1.3914,4558.1,4558.0,6.12537]
[1755422674836,1.9208,4558.1,4558.0,6.12537]
[1755422675335,2.4943,4558.1,4558.0,6.12537]
[1755422675736,3.0199464,4558.1,4558.0,6.12537]
[1755422676136,1.1552464,4558.1,4558.0,6.12537]
[1755422676533,1.9170464,4558.1,4558.0,6.12537]
[1755422677639,0.5256464,4558.1,4558.0,6.12537]
[1755422683336,2.4464464,4558.1,4558.0,6.12537]
[1755422683535,1.3914464,4558.1,4558.0,5.47967]
[1755422683737,21.4236464,4558.1,4558.0,6.12537]
[1755422684139,22.8150464,4558.1,4558.0,6.12537]
[1755422685835,23.3444464,4558.1,4558.0,6.12537]
[1755422686039,23.9179464,4558.1,4558.0,6.12537]
[1755422687243,23.92192806,4558.1,4558.0,6.12537]
[1755422688937,24.38812806,4558.1,4558.0,6.12537]
[1755422689641,23.92192806,4558.1,4558.0,6.12537]
[1755422690946,23.92192806,4558.1,4558.0,2.93627]
[1755422691247,24.38812806,4558.1,4558.0,4.18617]
[1755422691546,23.94382806,4558.1,4558.0,2.93627]
[1755422691739,23.94382806,4558.1,4557.4,0.4755]
[1755422691740,27.61782806,4558.1,4557.4,0.4755]
[1755422691942,2.4915,4557.5,4557.4,2.4841]
[1755422692244,0.52962806,4557.5,4557.4,6.3587]
[1755422692440,20.886,4557.5,4557.4,6.3587]
[1755422692640,21.41562806,4557.5,4557.4,6.3587]
[1755422694948,21.41562806,4557.5,4557.4,9.29497]
[1755422695944,0.00408121,4558.3,4558.2,2.064]
[1755422696149,20.88408121,4558.3,4558.2,5.2718]
[1755422696650,22.11648121,4558.3,4558.2,5.2718]
[1755422696846,22.11648121,4558.3,4558.2,1.5885]
[1755422696847,24.03608121,4558.3,4558.2,1.5885]
[1755422697346,21.35028121,4558.3,4558.2,1.5885]
[1755422697536,21.35028121,4558.3,4558.2,2.064]
[1755422697939,22.11648121,4558.3,4558.2,2.064]
[1755422698147,21.78998121,4558.3,4558.2,2.064]
[1755422698353,20.88408121,4558.3,4558.2,5.2718]
[1755422698550,21.35028121,4558.3,4558.2,5.2718]
[1755422699052,20.88408121,4558.3,4558.2,5.2718]
[1755422699953,21.35028121,4558.3,4558.2,5.2718]